bitfinex/quotes_SOLUSD_20250508
["timestamp","ask_amount","ask_price","bid_price","bid_amount"]
[1746719192947,36.69134189,162.09,162.01,21.60317767]
[1746719193442,21.58229018,162.17,161.99,6.17322056]
[1746719193443,26.0,162.13,161.99,6.17322056]
[1746719193652,36.69134189,162.03,161.99,6.17322056]
[1746719193820,36.69134189,162.02,161.99,6.17322056]
[1746719194029,36.69134189,162.07,161.99,6.17322056]
[1746719194333,36.69134189,162.07,162.0,44.64964886]
[1746719194537,47.58229018,162.17,162.01,0.14216157]
[1746719194538,32.16636862,162.17,162.01,0.14216157]
[1746719194720,6.16560823,162.19,162.04,18.79181043]
[1746719194936,6.16067028,162.32,162.13,21.72977644]
[1746719195142,6.16067028,162.32,162.13,6.16788996]
[1746719195143,36.69134189,162.18,162.13,6.16788996]
[1746719195553,18.64964886,162.29,162.11,6.16865091]
[1746719195756,26.0,162.25,162.11,6.16865091]
[1746719195938,18.64964886,162.29,162.07,26.0]
[1746719196270,26.0,162.25,162.07,26.0]
[1746719196561,26.0,162.21,162.04,36.27466894]
[1746719196748,36.27466894,162.1,162.04,36.27466894]
[1746719196951,6.16522811,162.2,162.06,6.17055411]
[1746719197258,36.27466894,162.11,162.06,42.44522305]
[1746719197471,21.57829839,162.2,162.06,42.44522305]
[1746719197639,21.57829839,162.2,162.08,36.27466894]
[1746719197957,36.27466894,162.12,162.07,36.27466894]
[1746719198161,36.27466894,162.13,162.07,36.27466894]
[1746719198367,36.27466894,162.15,162.09,36.27466894]
[1746719198541,36.27466894,162.14,162.09,36.27466894]
[1746719198743,36.27466894,162.13,162.08,62.27466894]
[1746719198964,0.14216157,162.26,162.08,62.27466894]
[1746719199167,21.57164868,162.25,162.09,6.16941205]
[1746719199347,26.0,162.23,162.09,6.16941205]
[1746719199555,36.27466894,162.15,162.1,36.27466894]
[1746719199760,36.27466894,162.15,162.09,21.59294218]
[1746719199761,26.0,162.24,162.09,21.59294218]
[1746719199934,36.27466894,162.15,162.09,21.59294218]
[1746719200354,36.27466894,162.14,162.09,21.59294218]
[1746719200561,36.27466894,162.14,162.09,15.42353013]
[1746719200759,1.5479,162.36,162.15,0.14216157]
[1746719200963,36.95719124,162.35,162.16,36.27466894]
[1746719201135,36.27466894,162.18,162.12,36.27466894]
[1746719201342,36.27466894,162.18,162.13,36.27466894]
[1746719201645,36.27466894,162.15,162.1,26.0]
[1746719201966,35.47224724,162.12,162.07,41.64242062]
[1746719202153,35.47224724,162.14,162.09,35.47224724]
[1746719202362,35.47224724,162.24,162.09,35.47224724]
[1746719202662,35.47224724,162.12,162.09,6.16941205]
[1746719202864,35.47224724,162.16,162.09,6.16941205]
[1746719203161,35.47224724,162.1,162.07,6.17006043]
[1746719203363,35.47224724,162.16,162.01,15.43071441]
[1746719203364,35.47224724,162.08,162.01,15.43071441]
[1746719203570,6.16645841,162.17,162.02,35.47224724]
[1746719203860,35.47224724,162.07,162.02,41.64432476]
[1746719204066,35.47224724,162.06,162.02,6.17207752]
[1746719204268,21.58237997,162.17,162.02,6.17207752]
[1746719204442,21.58237997,162.17,162.06,35.47224724]
[1746719204443,35.47224724,162.16,162.06,35.47224724]
[1746719204644,35.47224724,162.09,162.07,6.17017338]
[1746719205064,35.47224724,162.16,162.0,0.14216157]
[1746719205065,6.1671292,162.15,162.0,35.47224724]
[1746719205338,35.47224724,162.03,162.0,6.1728395]
[1746719205652,35.52386824,162.03,162.0,6.1728395]
[1746719205852,44.79181043,162.14,161.99,6.17312124]
[1746719206150,35.52386824,162.02,161.99,6.17312124]
[1746719206344,6.1671292,162.15,161.99,6.17312124]
[1746719206554,6.1671292,162.15,162.02,26.0]
[1746719206758,41.69068096,162.16,162.01,66.39541514]
[1746719206949,35.52386824,162.11,162.04,26.0]
[1746719207273,35.52386824,162.09,162.01,21.60360471]
[1746719207446,35.52386824,162.06,162.01,47.60360471]
[1746719207646,35.52386824,162.05,162.01,47.60360471]
[1746719207848,35.52386824,162.03,162.01,6.17245849]
[1746719208048,35.52386824,162.04,162.01,6.17245849]
[1746719208447,35.52386824,162.04,161.88,10.0]
[1746719208448,26.0,162.02,161.85,21.62496137]
[1746719208648,18.64964886,162.07,161.82,52.52749968]
[1746719208649,35.52386824,161.93,161.82,52.52749968]
[1746719208971,41.6967194,162.0,161.83,50.0]
[1746719209176,26.0,162.05,161.83,50.0]
[1746719209478,6.16979269,162.08,161.9,6.2203]
[1746719209660,35.52386824,162.03,161.94,26.0]
[1746719209854,35.52386824,162.02,161.94,26.0]
[1746719210061,57.11814266,162.08,161.94,26.0]
[1746719210288,35.52386824,162.01,161.94,26.0]
[1746719210683,35.52386824,162.01,161.95,6.17474529]
[1746719210885,6.17017338,162.07,161.95,6.17474529]
[1746719211084,6.16865091,162.11,161.99,26.0]
[1746719211280,35.52386824,162.08,161.99,26.0]
[1746719211473,35.52386824,162.03,161.99,26.0]
[1746719211672,35.52386824,162.01,161.96,26.0]
[1746719211872,0.14216157,162.1,161.91,6.17627076]
[1746719212098,35.52386824,162.0,161.82,80.89845812]
[1746719212297,0.14216157,162.05,161.9,13.97709013]
[1746719212497,35.52386824,162.08,161.93,26.0]
[1746719212770,35.52386824,162.0,161.9,13.97709013]
[1746719213301,6.17169659,162.03,161.9,13.97709013]
[1746719213474,35.52386824,161.95,161.9,13.97709013]
[1746719213670,35.52386824,162.0,161.9,13.97709013]
[1746719213877,6.17169659,162.03,161.9,13.97709013]
[1746719214098,6.17169659,162.03,161.9,6.17659013]
[1746719214099,35.52386824,161.93,161.9,6.17659013]
[1746719214295,35.52386824,161.92,161.88,6.17741536]
[1746719214532,21.74309965,162.03,161.88,21.62095378]
[1746719214533,6.17169659,162.03,161.88,21.62095378]
[1746719214703,35.52386824,161.94,161.88,15.44353842]
[1746719214900,35.52386824,161.93,161.88,15.44353842]
[1746719215109,35.52386824,162.0,161.88,15.44353842]
[1746719215318,35.52386824,161.95,161.88,15.44353842]
[1746719215527,35.52386824,162.0,161.88,15.44353842]
[1746719215910,35.52386824,161.91,161.87,32.17779699]
[1746719216115,18.79181043,161.99,161.87,6.17779699]
[1746719216303,35.52386824,161.9,161.87,6.17779699]
[1746719216509,35.52386824,161.89,161.87,6.17779699]
[1746719216912,35.52386824,161.89,161.86,6.17817867]
[1746719217112,35.52386824,161.87,161.86,6.17817867]
[1746719217414,35.52386824,161.87,161.75,281.24]
[1746719217415,35.52386824,161.87,161.83,6.17932398]
[1746719217601,18.64964886,161.91,161.8,6.18046971]
[1746719217801,26.0,161.91,161.8,21.63164399]
[1746719218130,35.52386824,161.86,161.8,21.63164399]
[1746719218528,35.52386824,161.92,161.8,21.63164399]
[1746719218726,35.52386824,161.86,161.8,21.63164399]
[1746719218903,41.70010033,161.92,161.8,15.45117428]
[1746719219107,35.52386824,161.86,161.8,15.45117428]
[1746719219433,35.52386824,161.84,161.8,15.45117428]
[1746719219630,35.52386824,161.84,161.78,6.18123377]
[1746719219631,35.52386824,161.82,161.78,6.18123377]
[1746719219824,18.79181043,161.91,161.78,6.18123377]
[1746719220004,35.52386824,161.84,161.78,6.18123377]
[1746719220205,61.52386824,161.92,161.78,47.6343182]
[1746719220206,35.52386824,161.88,161.78,47.6343182]
[1746719220503,35.52386824,161.86,161.78,47.6343182]
[1746719220704,35.52386824,161.83,161.78,21.6343182]
[1746719220919,35.52386824,161.81,161.76,6.18199802]
[1746719221119,35.52386824,161.79,161.76,6.18199802]
[1746719221325,35.52386824,161.84,161.76,6.18199802]
[1746719221633,35.52386824,161.77,161.73,6.18314474]
[1746719221804,35.52386824,161.74,161.7,6.18429189]
[1746719222304,35.52386824,161.71,161.67,6.18543947]
[1746719222625,35.52386824,161.76,161.67,6.18543947]
[1746719222798,35.52386824,161.76,161.66,15.46409386]
[1746719222799,35.52386824,161.71,161.66,15.46409386]
[1746719223002,35.52386824,161.69,161.62,21.65573567]
[1746719223204,35.52386824,161.68,161.62,21.65573567]
[1746719223400,35.52386824,161.76,161.62,21.65573567]
[1746719223401,26.0,161.81,161.62,52.59250092]
[1746719223626,35.52386824,161.75,161.63,18.64964886]
[1746719223824,26.0,161.82,161.64,0.14216157]
[1746719224030,35.52386824,161.77,161.65,26.0]
[1746719224337,26.0,161.82,161.66,18.79181043]
[1746719224629,6.0786,161.88,161.69,26.0]
[1746719224817,35.52386824,161.81,161.69,26.0]
[1746719225014,35.52386824,161.84,161.7,52.56648112]
[1746719225209,35.52386824,161.77,161.7,52.56648112]
[1746719225427,35.52386824,161.76,161.7,21.64502163]
[1746719225631,35.52386824,161.75,161.7,21.64502163]
[1746719225831,35.52386824,161.84,161.7,21.64502163]
[1746719226140,35.52386824,161.79,161.7,52.56648112]
[1746719226319,6.17817867,161.86,161.7,78.56648112]
[1746719226633,6.17703378,161.89,161.73,26.0]
[1746719226840,35.52386824,161.79,161.7,78.56648112]
[1746719227203,35.52386824,161.74,161.7,21.64502163]
[1746719227412,35.52386824,161.72,161.7,6.18429189]
[1746719227619,35.52386824,161.71,161.64,15.46592918]
[1746719227829,35.52386824,161.65,161.62,6.18735305]
[1746719228129,0.14216157,161.74,161.62,6.18735305]
[1746719228307,35.52386824,161.76,161.62,6.18735305]
[1746719228508,35.52386824,161.76,161.62,21.65573567]
[1746719228903,44.64964886,161.81,161.66,21.65037732]
[1746719229106,35.52386824,161.71,161.66,21.65037732]
[1746719229307,35.52386824,161.7,161.66,21.65037732]
[1746719229732,35.52386824,161.69,161.66,6.18582209]
[1746719229932,35.52386824,161.68,161.66,6.18582209]
[1746719230138,35.52386824,161.67,161.64,6.18658747]
[1746719230320,35.52386824,161.65,161.64,6.18658747]
[1746719230515,44.79181043,161.75,161.64,6.18658747]
[1746719230940,35.52386824,161.65,161.6,15.46978839]
[1746719231141,44.79181043,161.75,161.6,15.46978839]
[1746719231313,35.52386824,161.66,161.6,15.46978839]
[1746719231514,35.52386824,161.65,161.6,15.46978839]
[1746719231732,35.52386824,161.64,161.6,15.46978839]
[1746719231939,15.45690614,161.74,161.6,15.46978839]
[1746719232245,35.52386824,161.65,161.6,15.46978839]
[1746719232450,35.52386824,161.62,161.59,6.18850176]
[1746719232623,35.52386824,161.68,161.59,6.18850176]
[1746719233023,26.0,161.72,161.59,6.18850176]
[1746719233329,35.52386824,161.63,161.59,6.18850176]
[1746719233637,35.52386824,161.64,161.59,6.18850176]
[1746719233813,26.0,161.72,161.53,37.36328734]
[1746719233814,6.18488463,161.69,161.56,6.1896509]
[1746719234015,35.52386824,161.67,161.56,37.13790541]
[1746719234232,35.52386824,161.69,161.59,26.0]
[1746719234431,35.52386824,161.67,161.59,26.0]
[1746719234645,35.52386824,161.64,161.59,26.0]
[1746719234830,35.52386824,161.65,161.59,26.0]
[1746719235030,6.18323752,161.73,161.59,26.0]
[1746719235247,35.52386824,161.67,161.59,26.0]
[1746719235545,35.52386824,161.7,161.59,26.0]
[1746719235719,35.52386824,161.68,161.59,26.0]
[1746719235924,35.52386824,161.67,161.6,21.65841583]
[1746719236155,35.52386824,161.64,161.6,21.65841583]
[1746719236446,35.52386824,161.62,161.6,21.65841583]
[1746719236639,35.52386824,161.68,161.6,21.65841583]
[1746719236815,35.52386824,161.64,161.6,21.65841583]
[1746719237014,6.1834494,161.73,161.6,21.65841583]
[1746719237226,35.52386824,161.68,161.6,21.65841583]
[1746719237425,35.52386824,161.65,161.6,21.65841583]
[1746719237629,35.52386824,161.66,161.6,21.65841583]
[1746719237841,6.18352708,161.72,161.6,15.47029702]
[1746719238138,35.52386824,161.61,161.59,6.18850176]
[1746719238339,18.64964886,161.71,161.59,21.65975616]
[1746719238528,35.52386824,161.64,161.59,21.65975616]
[1746719239519,35.52386824,161.64,161.59,15.4712544]
[1746719239718,35.52386824,161.62,161.59,15.4712544]
[1746719240041,35.52386824,161.66,161.59,15.4712544]
[1746719240264,35.52386824,161.65,161.59,15.4712544]
[1746719240647,44.64964886,161.75,161.59,15.4712544]
[1746719240841,35.52386824,161.65,161.59,15.4712544]
[1746719241048,18.79181043,161.74,161.59,15.4712544]
[1746719241252,41.70586626,161.76,161.59,41.4712544]
[1746719241427,35.52386824,161.68,161.59,41.4712544]
[1746719241632,35.52386824,161.66,161.59,47.65975616]
[1746719241825,35.52386824,161.67,161.59,47.65975616]
[1746719242054,35.52386824,161.76,161.63,26.0]
[1746719242223,35.52386824,161.72,161.63,26.0]
[1746719242428,6.18172127,161.77,161.63,26.0]
[1746719242756,35.52386824,161.7,161.62,26.0]
[1746719242921,35.52386824,161.66,161.61,1.6366]
[1746719243118,35.52386824,161.66,161.59,21.65975616]
[1746719243322,35.52386824,161.68,161.59,21.65975616]
[1746719243635,18.64964886,161.79,161.63,26.0]
[1746719243839,35.52386824,161.74,161.63,26.0]
[1746719244059,6.18008775,161.81,161.64,18.79181043]
[1746719244362,35.52386824,161.84,161.67,26.0]
[1746719244536,6.17932398,161.83,161.68,18.79181043]
[1746719244740,6.17779699,161.87,161.71,26.0]
[1746719244941,35.52386824,161.83,161.71,26.0]
[1746719245166,35.52386824,161.79,161.71,26.0]
[1746719245869,35.52386824,161.8,161.72,21.64234478]
[1746719246056,15.4422624,161.9,161.72,21.64234478]
[1746719246263,6.17627076,161.91,161.75,26.0]
[1746719246562,35.52386824,162.0,161.79,26.0]
[1746719250581,35.52386824,161.74,161.71,6.18390946]
[1746719251077,35.52386824,161.72,161.67,6.2308]
[1746719251263,35.52386824,161.71,161.67,6.2308]
[1746719251463,35.52386824,161.73,161.67,27.8797782]
[1746719251666,35.52386824,161.75,161.67,27.8797782]
[1746719251969,6.18008775,161.81,161.67,27.8797782]
[1746719251970,35.52386824,161.73,161.67,27.8797782]
[1746719252274,6.18008775,161.81,161.67,27.8797782]
[1746719252466,61.52386824,161.84,161.68,26.0]
[1746719252771,35.52386824,161.76,161.7,26.0]
[1746719252952,6.17932398,161.83,161.7,26.0]
[1746719253157,35.52386824,161.78,161.7,26.0]
[1746719253463,35.52386824,161.77,161.7,26.0]
[1746719253668,6.17932398,161.83,161.71,6.18390946]
[1746719253669,35.52386824,161.75,161.71,6.18390946]
[1746719253973,6.17960285,161.83,161.71,6.18390946]
[1746719254349,6.17873163,161.85,161.71,52.56323045]
[1746719254550,35.52386824,161.84,161.71,21.64368312]
[1746719254752,35.52386824,161.76,161.71,21.64368312]
[1746719254968,35.52386824,161.84,161.71,21.64368312]
[1746719255675,35.52386824,161.77,161.71,21.64368312]
[1746719255887,35.52386824,161.73,161.71,6.18390946]
[1746719256064,18.79181043,161.83,161.71,6.18390946]
[1746719256264,18.79181043,161.81,161.71,6.18390946]
[1746719256467,6.17970584,161.82,161.71,6.18390946]
[1746719256655,35.52386824,161.74,161.71,6.18390946]
[1746719257158,6.17970584,161.82,161.71,21.64368312]
[1746719257371,6.17970584,161.82,161.67,37.15761718]
[1746719257372,35.52386824,161.73,161.69,6.18467437]
[1746719257578,35.52386824,161.72,161.69,6.18467437]
[1746719257751,35.52386824,161.74,161.68,21.64710854]
[1746719257957,35.52386824,161.71,161.68,6.1850569]
[1746719258355,35.52386824,161.73,161.68,21.64769915]
[1746719258556,35.52386824,161.72,161.68,21.64769915]
[1746719258782,6.18114431,161.79,161.68,21.64769915]
[1746719259075,6.18038172,161.81,161.68,21.64769915]
[1746719259284,35.52386824,161.75,161.68,21.64769915]
[1746719259589,35.52386824,161.69,161.66,6.18582209]
[1746719259763,6.18238021,161.75,161.63,21.65439584]
[1746719259964,35.52386824,161.69,161.63,21.65439584]
[1746719260265,35.52386824,161.67,161.63,6.18697024]
[1746719260463,35.52386824,161.66,161.63,6.18697024]
[1746719260666,0.14216157,161.73,161.63,6.18697024]
[1746719260879,35.52386824,161.66,161.63,6.18697024]
[1746719261259,35.52386824,161.67,161.63,6.18697024]
[1746719261562,6.1839207,161.71,161.6,21.65775595]
[1746719261761,35.52386824,161.66,161.6,21.65775595]
[1746719261973,35.52386824,161.65,161.6,21.65775595]
[1746719262186,6.1839207,161.71,161.6,21.65775595]
[1746719262487,35.52386824,161.64,161.6,21.65775595]
[1746719262686,6.1839207,161.71,161.6,21.65775595]
[1746719263203,10.0,161.85,161.63,26.0]
[1746719263361,35.52386824,161.76,161.64,21.65305616]
[1746719263562,35.52386824,161.74,161.64,21.65305616]
[1746719264281,35.52386824,161.76,161.67,26.0]
[1746719264479,18.64964886,161.81,161.67,26.0]
[1746719264674,55.8331139,161.83,161.64,32.18658747]
[1746719264675,35.52386824,161.72,161.64,32.18658747]
[1746719264880,18.79181043,161.79,161.64,32.18658747]
[1746719265067,35.52386824,161.76,161.64,32.18658747]
[1746719265268,35.52386824,161.71,161.64,32.18658747]
[1746719265470,35.52386824,161.69,161.61,41.46864988]
[1746719265688,35.52386824,161.69,161.61,15.46864988]
[1746719266171,35.52386824,161.68,161.61,15.46864988]
[1746719266503,35.52386824,161.69,161.61,15.46864988]
[1746719266676,35.52386824,161.68,161.55,6.19003404]
[1746719266879,35.52386824,161.61,161.55,6.19003404]
[1746719267179,35.52386824,161.58,161.55,6.19003404]
[1746719267380,6.18658747,161.64,161.47,15.48275221]
[1746719267579,35.52386824,161.56,161.47,15.48275221]
[1746719267874,35.52386824,161.6,161.47,15.48275221]
[1746719268087,35.52386824,161.56,161.47,15.48275221]
[1746719268991,35.52386824,161.55,161.48,26.0]
[1746719269286,35.52386824,161.55,161.47,15.48275221]
[1746719269485,6.32913181,161.63,161.48,26.0]
[1746719269693,6.18697024,161.63,161.48,26.0]
[1746719269994,35.52386824,161.61,161.5,26.0]
[1746719270195,35.52386824,161.63,161.54,26.0]
[1746719270487,35.52386824,161.62,161.54,26.0]
[1746719270692,6.18390946,161.71,161.54,26.0]
[1746719270888,15.45941248,161.72,161.55,52.61528937]
[1746719270889,35.52386824,161.65,161.55,52.61528937]
[1746719271067,24.83345009,161.72,161.58,26.0]
[1746719271275,35.52386824,161.66,161.58,26.0]
[1746719271785,35.52386824,161.67,161.58,26.0]
[1746719271982,1.5772,161.8,161.58,32.328]
[1746719272187,35.52386824,161.72,161.62,26.0]
[1746719272395,6.18085172,161.79,161.62,26.0]
[1746719272611,6.18008775,161.81,161.66,26.0]
[1746719272793,35.52386824,161.7,161.66,26.0]
[1746719272971,6.18046971,161.8,161.67,6.18543947]
[1746719273374,35.52386824,161.73,161.67,6.18543947]
[1746719273795,35.52386824,161.73,161.67,21.64903815]
[1746719273981,35.52386824,161.72,161.67,21.64903815]
[1746719274290,35.52386824,161.73,161.67,15.46359868]
[1746719274905,35.52386824,161.72,161.67,15.46359868]
[1746719275076,35.52386824,161.76,161.67,15.46359868]
[1746719275278,26.0,161.81,161.67,15.46359868]
[1746719275475,35.52386824,161.73,161.67,15.46359868]
[1746719275675,6.17977216,161.82,161.67,15.46359868]
[1746719275676,35.52386824,161.71,161.67,15.46359868]
[1746719275897,35.52386824,161.76,161.67,15.46359868]
[1746719276079,35.52386824,161.7,161.67,15.46359868]
[1746719276279,35.52386824,161.69,161.66,6.18582209]
[1746719276494,35.52386824,161.72,161.66,6.18582209]
[1746719277073,35.52386824,161.74,161.66,52.57948779]
[1746719277277,24.82980605,161.81,161.66,52.57948779]
[1746719277278,50.97196762,161.81,161.66,52.57948779]
[1746719277495,32.18015719,161.81,161.66,52.57948779]
[1746719277825,24.82906121,161.83,161.69,26.0]
[1746719277972,35.52386824,161.76,161.69,26.0]
[1746719278175,35.52386824,161.75,161.7,21.64502163]
[1746719278576,26.0,161.8,161.7,6.18429189]
[1746719278776,35.52386824,161.71,161.7,6.18429189]
[1746719279384,35.52386824,161.72,161.7,6.18429189]
[1746719279590,35.52386824,161.76,161.68,6.1850569]
[1746719279788,35.52386824,161.69,161.68,6.1850569]
[1746719280198,35.52386824,161.69,161.62,30.9359624]
[1746719280387,0.14216157,161.79,161.65,26.0]
[1746719280692,35.52386824,161.72,161.65,26.0]
[1746719280885,35.52386824,161.76,161.63,26.0]
[1746719281075,35.52386824,161.7,161.63,26.0]
[1746719281500,6.0786,161.87,161.69,26.0]
[1746719281708,35.52386824,161.79,161.69,26.0]
[1746719282014,18.64964886,161.86,161.69,26.0]
[1746719282186,35.52386824,161.75,161.7,21.64502163]
[1746719282382,35.52386824,161.76,161.7,21.64502163]
[1746719282615,35.52386824,161.75,161.7,21.64502163]
[1746719282814,0.14216157,161.82,161.7,21.64502163]
[1746719283023,35.52386824,161.76,161.7,21.64502163]
[1746719283402,35.52386824,161.75,161.7,21.64502163]
[1746719283789,6.17932398,161.83,161.7,21.64502163]
[1746719283790,35.52386824,161.76,161.7,52.56648112]
[1746719284109,6.17932398,161.83,161.7,46.38218923]
[1746719284312,35.52386824,161.84,161.73,26.0]
[1746719284618,35.52386824,161.77,161.7,46.38218923]
[1746719284788,35.52386824,161.75,161.7,15.46072974]
[1746719285120,35.52386824,161.79,161.71,26.0]
[1746719285293,35.52386824,161.79,161.73,26.0]
[1746719285693,35.52386824,161.77,161.71,26.0]
[1746719286008,35.52386824,161.83,161.75,26.0]
[1746719286216,35.52386824,161.83,161.76,21.63699307]
[1746719286519,40.85848299,162.03,161.8,26.0]
[1746719286692,35.52386824,162.0,161.84,26.0]
[1746719286887,6.17093489,162.05,161.89,26.0]
[1746719287087,35.52386824,162.08,161.89,26.0]
[1746719287088,35.52386824,162.08,161.93,26.0]
[1746719287607,35.52386824,162.02,161.93,26.0]
[1746719287812,35.52386824,162.01,161.93,26.0]
[1746719288012,35.52386824,162.03,161.93,26.0]
[1746719288322,16.0786,162.13,161.94,52.48857601]
[1746719288517,35.52386824,162.02,161.94,52.48857601]
[1746719288705,35.52386824,162.01,161.94,52.48857601]
[1746719288900,35.52386824,162.01,161.94,21.61294306]
[1746719289108,18.64964886,162.07,161.94,6.17512659]
[1746719289317,21.58894645,162.12,161.94,32.17512659]
[1746719289708,35.52386824,162.08,161.94,32.17512659]
[1746719290022,35.52386824,162.03,161.94,47.61294306]
[1746719290195,35.52386824,162.08,161.94,47.61294306]
[1746719290396,32.16974784,162.09,161.94,47.61294306]
[1746719290606,6.16974784,162.09,161.94,47.61294306]
[1746719290815,6.16827041,162.12,161.97,26.0]
[1746719291025,6.1671292,162.15,161.98,26.0]
[1746719291396,35.52386824,162.07,161.98,26.0]
[1746719291702,32.1671292,162.15,161.98,26.0]
[1746719292026,21.5849522,162.15,161.98,26.0]
[1746719292326,35.52386824,162.07,161.98,26.0]
[1746719292522,35.52386824,162.08,161.99,6.17322056]
[1746719292690,6.1671292,162.15,162.03,26.0]
[1746719293108,35.52386824,162.09,162.03,26.0]
[1746719293313,41.69068453,162.16,162.03,26.0]
[1746719293597,50.0,162.34,162.01,18.64964886]
[1746719293598,15.40967609,162.24,162.04,26.0]
[1746719293895,35.52386824,162.2,162.08,26.0]
[1746719294115,35.52386824,162.2,162.12,26.0]
[1746719294291,6.16332819,162.25,162.12,26.0]
[1746719294491,26.0,162.28,162.13,6.16788996]
[1746719294905,52.36892365,162.31,162.13,6.16788996]
[1746719294906,35.52386824,162.18,162.13,6.16788996]
[1746719295105,35.52386824,162.24,162.1,6.16903146]
[1746719295106,26.0,162.24,162.1,6.16903146]
[1746719295296,35.52386824,162.15,162.1,6.16903146]
[1746719295693,10.0,162.36,162.13,26.0]
[1746719295926,18.64964886,162.3,162.13,26.0]
[1746719296226,35.52386824,162.18,162.11,26.0]
[1746719296433,6.1618091,162.29,162.12,21.58894645]
[1746719296646,26.0,162.28,162.12,21.58894645]
[1746719296808,35.52386824,162.24,162.12,21.58894645]
[1746719297001,35.52386824,162.19,162.12,21.58894645]
[1746719297208,61.52386824,162.24,162.12,21.58894645]
[1746719297422,35.52386824,162.2,162.12,21.58894645]
[1746719297628,35.52386824,162.24,162.12,21.58894645]
[1746719297816,40.21598072,162.29,162.13,26.0]
[1746719298007,35.52386824,162.18,162.12,21.58894645]
[1746719298433,6.16256855,162.27,162.12,21.58894645]
[1746719298815,35.52386824,162.19,162.12,21.58894645]
[1746719299015,35.52386824,162.24,162.12,21.58894645]
[1746719299220,35.52386824,162.24,162.12,6.16827041]
[1746719299423,35.52386824,162.18,162.12,6.16827041]
[1746719299810,18.79181043,162.26,162.12,6.16827041]
[1746719300031,35.52386824,162.17,162.12,6.16827041]
[1746719300368,35.52386824,162.13,162.05,6.17093489]
[1746719300538,35.52386824,162.15,162.05,46.28123362]
[1746719300706,35.52386824,162.15,162.08,26.0]
[1746719301227,67.68757632,162.24,162.08,26.0]
[1746719301439,35.52386824,162.14,162.08,26.0]
[1746719301739,35.52386824,162.11,162.05,15.42655914]
[1746719301909,0.14216157,162.23,162.05,15.42655914]
[1746719302104,18.79181043,162.19,162.05,15.42655914]
[1746719302313,18.79181043,162.19,162.04,6.17131572]
[1746719302515,6.16750955,162.14,162.0,8.1589]
[1746719302724,35.52386824,162.08,161.94,6.6277]
[1746719302929,35.52386824,162.0,161.93,6.17542973]
[1746719303130,0.14216157,162.06,161.93,6.17542973]
[1746719303334,35.52386824,161.97,161.93,6.17542973]
[1746719303546,35.52386824,161.96,161.9,6.17665225]
[1746719304005,35.52386824,161.92,161.9,6.17665225]
[1746719304233,35.52386824,162.0,161.9,6.17665225]
[1746719304648,26.0,162.01,161.88,21.62095378]
[1746719304829,6.17131572,162.04,161.88,78.50803062]
[1746719305034,6.17096576,162.05,161.89,18.64964886]
[1746719305346,35.52386824,161.97,161.88,78.50803062]
[1746719305653,35.52386824,161.96,161.88,78.50803062]
[1746719305955,26.0,162.06,161.89,18.64964886]
[1746719306163,35.52386824,161.98,161.88,78.65019219]
[1746719306353,35.52386824,161.97,161.88,78.50803062]
[1746719306535,35.52386824,161.98,161.88,78.50803062]
[1746719306731,6.16750955,162.14,161.96,26.0]
[1746719306933,35.52386824,162.05,161.96,26.0]
[1746719307131,35.52386824,162.02,161.96,26.0]
[1746719307327,35.52386824,162.01,161.92,26.0]
[1746719307533,35.52386824,162.08,161.92,26.0]
[1746719307759,35.52386824,162.02,161.92,26.0]
[1746719307938,35.52386824,162.08,161.93,18.79181043]
[1746719308244,35.52386824,162.02,161.93,18.79181043]
[1746719308441,35.52386824,162.01,161.94,21.61294306]
[1746719308752,44.79181043,162.07,161.94,6.17512659]
[1746719308958,35.52386824,161.99,161.94,6.17512659]
[1746719309262,26.0,162.07,161.94,21.61294306]
[1746719309431,35.52386824,162.0,161.94,21.61294306]
[1746719309633,35.52386824,161.99,161.94,21.61294306]
[1746719309834,41.69397744,162.08,161.94,6.17512659]
[1746719310031,35.52386824,162.02,161.94,20.60718676]
[1746719310251,41.69397744,162.08,161.94,20.60718676]
[1746719310563,35.52386824,162.01,161.94,20.60718676]
[1746719310761,41.69397744,162.08,161.94,20.60718676]
[1746719310930,18.64964886,162.06,161.94,5.16937029]
[1746719311126,35.52386824,161.97,161.94,5.16937029]
[1746719311330,35.52386824,161.95,161.92,6.17588932]
[1746719311547,0.14216157,162.05,161.92,21.61561264]
[1746719311747,40.24658825,162.06,161.92,21.61561264]
[1746719311949,35.52386824,161.97,161.92,21.61561264]
[1746719312149,35.52386824,161.95,161.92,6.17588932]
[1746719312458,35.52386824,161.96,161.92,6.17588932]
[1746719312648,26.14216157,162.02,161.88,6.17741536]
[1746719312856,35.52386824,161.91,161.88,6.17741536]
[1746719313044,35.52386824,161.89,161.88,6.17741536]
[1746719313232,35.52386824,161.91,161.83,15.44793833]
[1746719313434,32.17322056,161.99,161.83,34.09758719]